bitfinex/quotes_ETHUSD_20241003
["timestamp","ask_amount","ask_price","bid_price","bid_amount"]
[1727929032552,3.33278,2400.4,2400.0,0.8195]
[1727929032553,3.33291,2400.3,2400.0,0.8195]
[1727929033859,3.33278,2400.4,2400.0,0.8195]
[1727929035151,6.66567,2400.4,2400.0,0.8195]
[1727929035750,3.33278,2400.4,2400.0,0.8195]
[1727929037310,3.33278,2400.4,2400.0,1.54328809]
[1727929038295,3.52509,2400.6,2400.0,4.87658809]
[1727929038495,3.33264,2400.5,2400.0,4.87658809]
[1727929038920,3.33259,2400.6,2400.1,4.08777]
[1727929039265,3.52481,2400.8,2400.2,4.14062]
[1727929039560,3.33236,2400.7,2400.3,0.75330309]
[1727929039718,3.33236,2400.7,2400.2,4.14062]
[1727929041112,3.33236,2400.7,2400.2,0.8076]
[1727929041113,3.33252,2400.6,2400.2,0.8076]
[1727929041427,6.85763,2400.6,2400.2,0.8076]
[1727929041614,3.52502,2400.6,2400.2,0.8076]
[1727929042021,6.85759,2400.6,2400.2,0.8076]
[1727929042224,3.52502,2400.6,2400.2,0.8076]
[1727929044314,6.85758,2400.6,2400.2,0.8076]
[1727929044518,3.52502,2400.6,2400.2,0.8076]
[1727929045526,3.3328,2400.4,2400.2,0.8076]
[1727929045839,3.3328,2400.4,2400.0,0.8135]
[1727929046309,3.33301,2400.3,2400.0,0.8135]
[1727929047563,3.33301,2400.3,2399.9,0.7895]
[1727929048029,6.666,2400.3,2399.9,0.7895]
[1727929049065,3.33299,2400.3,2399.9,0.7895]
[1727929049362,4.59523654,2400.5,2400.0,0.8123]
[1727929049363,3.33275,2400.5,2400.0,0.8123]
[1727929049518,3.33281,2400.4,2400.0,0.8123]
[1727929050585,3.33292,2400.3,2400.0,0.8123]
[1727929050790,3.33327,2400.1,2399.8,1.62942102]
[1727929050947,3.33314,2400.2,2399.8,0.7559]
[1727929051148,3.33333,2400.0,2399.8,0.7559]
[1727929052149,3.33314,2400.2,2399.8,0.7559]
[1727929052360,3.33314,2400.2,2399.8,1.2522211]
[1727929052758,6.66628,2400.2,2399.8,1.2522211]
[1727929053292,6.66628,2400.2,2399.9,0.7782]
[1727929053663,3.33314,2400.2,2399.9,0.7782]
[1727929053886,3.33314,2400.2,2399.9,1.32636321]
[1727929054403,3.33288,2400.4,2400.0,0.8008]
[1727929054557,3.33258,2400.6,2400.2,0.8008]
[1727929055461,10.71873,2401.2,2400.6,0.8008]
[1727929055702,2.0,2402.4,2400.6,0.8008]
[1727929055703,3.33147,2401.4,2400.9,0.7687]
[1727929056003,3.33147,2401.4,2400.9,0.85199706]
[1727929056307,3.33156,2401.3,2400.9,1.18711444]
[1727929056911,6.66295,2401.4,2400.9,1.18711444]
[1727929057461,3.33147,2401.4,2400.9,1.18711444]
[1727929057667,3.33153,2401.3,2400.9,1.18711444]
[1727929058198,6.66297,2401.4,2400.9,1.18711444]
[1727929058369,3.33154,2401.3,2400.9,1.18711444]
[1727929059970,3.33167,2401.2,2400.9,1.18711444]
[1727929061405,3.33153,2401.3,2400.9,1.18711444]
[1727929061610,3.33153,2401.3,2401.0,0.45192444]
[1727929063464,3.33176,2401.2,2400.9,0.7687]
[1727929064802,3.33153,2401.3,2400.9,0.7687]
[1727929064803,6.66319,2401.3,2400.9,0.7687]
[1727929065116,3.33168,2401.2,2400.9,0.7687]
[1727929074488,3.33185,2401.1,2400.9,0.7687]
[1727929074728,3.33168,2401.2,2400.9,0.7687]
[1727929077353,3.33188,2401.1,2400.9,0.7687]
[1727929077516,3.33168,2401.2,2400.9,0.7687]
[1727929081046,3.331,2401.7,2401.3,0.7823]
[1727929081047,3.33097,2401.7,2401.3,0.7823]
[1727929081254,3.33097,2401.7,2401.4,0.411384]
[1727929081453,3.33097,2401.7,2401.3,0.7823]
[1727929081921,3.33154,2401.3,2401.0,0.7989]
[1727929082356,3.3318,2401.1,2400.7,0.7989]
[1727929084141,3.3318,2401.1,2400.7,4.13124]
[1727929085769,6.66368,2401.1,2400.7,0.7989]
[1727929085938,3.3318,2401.1,2400.7,0.7989]
[1727929088317,6.66329,2401.3,2400.7,4.07871]
[1727929088523,3.33167,2401.2,2400.8,0.783]
[1727929089335,3.33184,2401.1,2400.8,0.783]
[1727929090355,6.6634,2401.2,2400.8,0.783]
[1727929090559,3.33167,2401.2,2400.8,0.783]
[1727929092193,6.66341,2401.2,2400.8,0.783]
[1727929092557,3.33194,2401.1,2400.8,0.783]
[1727929092890,3.33204,2401.0,2400.8,0.783]
[1727929093450,3.33204,2401.0,2400.6,0.35836635]
[1727929093451,3.33211,2400.9,2400.4,0.8164]
[1727929093693,3.33236,2400.7,2400.4,0.8164]
[1727929094189,6.6648,2400.7,2400.4,0.8164]
[1727929094398,3.33236,2400.7,2400.4,0.8164]
[1727929095148,3.33217,2400.9,2400.4,0.8164]
[1727929095149,3.33222,2400.8,2400.4,0.8164]
[1727929096877,3.3324,2400.7,2400.4,0.8164]
[1727929099480,3.33256,2400.6,2400.4,0.8164]
[1727929099814,3.3324,2400.7,2400.1,0.7656]
[1727929099815,3.33264,2400.5,2400.1,0.7656]
[1727929100112,3.33264,2400.5,2400.1,5.16467788]
[1727929100265,1.26186311,2400.6,2400.1,0.7656]
[1727929100470,1.26186311,2400.6,2399.8,5.07893523]
[1727929100471,3.33319,2400.2,2399.9,0.8308]
[1727929100671,3.33333,2400.0,2399.8,1.74541523]
[1727929101012,3.33333,2400.0,2399.7,0.8308]
[1727929101195,3.52544,2400.3,2399.7,1.28305307]
[1727929101402,3.33285,2400.4,2399.9,3.33344]
[1727929101585,3.33285,2400.4,2400.0,0.8308]
[1727929101913,6.6657,2400.4,2400.0,0.8308]
[1727929102114,3.33292,2400.3,2400.0,0.8308]
[1727929102912,0.1925,2400.5,2400.0,0.8308]
[1727929103116,3.33334,2400.0,2399.8,1.64864346]
[1727929103475,6.6668,2400.0,2399.8,0.87544346]
[1727929104026,3.33347,2399.9,2399.8,0.87544346]
[1727929104173,9.26182611,2399.9,2399.8,0.87544346]
[1727929104537,9.81182611,2399.9,2399.8,0.87544346]
[1727929105965,6.52597,2399.9,2399.8,0.87544346]
[1727929107238,6.52597,2399.9,2399.3,0.7792]
[1727929107239,3.33393,2399.6,2399.3,0.7792]
[1727929107991,3.33393,2399.6,2399.1,0.8331]
[1727929107992,3.33433,2399.3,2399.1,0.8331]
[1727929108492,3.33433,2399.3,2398.8,0.7688]
[1727929109493,3.33433,2399.3,2398.8,4.10379]
[1727929109692,3.33433,2399.3,2398.9,0.45248583]
[1727929110730,3.33427,2399.4,2398.9,0.45248583]
[1727929110898,6.66852,2399.4,2398.9,0.45248583]
[1727929111297,3.33425,2399.4,2398.9,0.45248583]
[1727929111497,3.33425,2399.4,2398.9,3.78733583]
[1727929113143,3.33403,2399.5,2399.0,4.12382258]
[1727929113741,10.72069,2399.8,2399.1,0.7864]
[1727929113946,10.72069,2399.8,2399.0,4.12382258]
[1727929113947,3.33369,2399.8,2399.3,0.7864]
[1727929114173,6.66742,2399.8,2399.4,0.412075]
[1727929114338,6.66737,2399.8,2399.3,0.7864]
[1727929114528,3.33368,2399.8,2399.3,0.7864]
[1727929114723,3.33368,2399.8,2399.3,1.531911]
[1727929115072,3.33378,2399.7,2399.3,1.531911]
[1727929115221,3.33368,2399.8,2399.3,1.531911]
[1727929115422,6.66742,2399.8,2399.3,1.531911]
[1727929115981,3.33368,2399.8,2399.3,1.531911]
[1727929116324,3.33368,2399.8,2399.5,0.7603]
[1727929117023,6.66737,2399.8,2399.5,0.7603]
[1727929117257,3.33368,2399.8,2399.5,0.7603]
[1727929119757,3.3335,2399.9,2399.5,0.7603]
[1727929120076,3.33362,2399.8,2399.5,0.7603]
[1727929120401,7.387,2400.1,2399.5,0.7603]
[1727929120402,6.66683,2400.0,2399.5,0.7603]
[1727929120679,3.3334,2400.0,2399.5,4.09431]
[1727929120975,3.33361,2399.8,2399.6,0.409431]
[1727929121177,3.33361,2399.8,2399.5,0.7603]
[1727929121880,3.33376,2399.7,2399.5,0.7603]
[1727929123435,3.33361,2399.8,2399.5,0.7603]
[1727929123824,3.33378,2399.7,2399.5,0.7603]
[1727929124873,3.33378,2399.7,2399.3,0.8002]
[1727929126183,3.52611,2399.8,2399.3,0.8002]
[1727929126351,3.33381,2399.7,2399.3,0.8002]
[1727929127873,0.1925,2399.8,2399.3,0.8002]
[1727929128081,3.33411,2399.5,2399.1,0.8202]
[1727929130364,3.33417,2399.4,2399.1,0.8202]
[1727929131539,6.66841,2399.4,2399.1,0.8202]
[1727929132050,3.33417,2399.4,2399.1,0.8202]
[1727929132577,6.66842,2399.4,2399.1,0.8202]
[1727929132877,6.66846,2399.4,2399.1,0.8202]
[1727929134741,3.33417,2399.4,2399.1,0.8202]
[1727929134944,3.3343,2399.3,2399.1,0.8202]
[1727929135777,3.33444,2399.2,2399.1,0.8202]
[1727929135940,3.33444,2399.2,2398.9,0.7517]
[1727929136796,3.33444,2399.2,2398.7,0.8194]
[1727929137943,6.66902,2399.2,2398.7,0.8194]
[1727929138343,3.3346,2399.1,2398.7,0.8194]
[1727929138581,3.33444,2399.2,2398.7,1.534857]
[1727929138885,6.669,2399.2,2398.7,1.534857]
[1727929139185,3.33465,2399.1,2398.7,1.534857]
[1727929140280,0.1925,2399.4,2398.3,1.75088692]
[1727929140281,2.73878793,2398.9,2398.4,0.7904]
[1727929140591,3.33494,2398.9,2398.4,0.7904]
[1727929140754,3.33501,2398.8,2398.4,0.7904]
[1727929140961,3.33494,2398.9,2398.4,0.7904]
[1727929141161,0.1925,2398.6,2398.2,0.87544346]
[1727929141359,3.33586,2398.2,2398.0,0.87544346]
[1727929141544,3.33586,2398.2,2397.9,1.65044346]
[1727929141745,6.86428,2398.2,2397.8,0.87544346]
[1727929141994,3.33564,2398.4,2397.8,3.96640986]
[1727929142169,3.33537,2398.6,2398.0,3.3361]
[1727929142381,3.33536,2398.6,2398.2,0.8133]
[1727929142889,3.33535,2398.6,2398.2,0.8133]
[1727929143089,3.33507,2398.8,2398.2,4.14904]
[1727929143474,3.52734,2399.0,2398.4,4.15593]
[1727929143788,3.33484,2399.0,2398.4,4.15593]
[1727929143995,3.33484,2399.0,2398.4,7.49141]
[1727929144299,3.3347,2399.1,2398.5,0.8204]
[1727929144458,10.72067,2399.8,2398.5,0.8204]
[1727929144459,3.52662,2399.5,2398.7,3.56078793]
[1727929144665,3.33412,2399.5,2398.9,3.33482]
[1727929144875,3.33412,2399.5,2399.0,0.74917]
[1727929145192,6.66822,2399.5,2399.0,0.74917]
[1727929145356,3.3341,2399.5,2399.1,0.822]
[1727929148560,3.33424,2399.4,2399.1,0.822]
[1727929148755,3.33373,2399.8,2399.1,0.822]
[1727929148955,7.387,2400.0,2399.3,0.789]
[1727929149158,3.33411,2399.5,2399.3,0.789]
[1727929149766,6.66826,2399.5,2399.3,0.789]
[1727929149971,3.33411,2399.5,2399.0,0.8067]
[1727929150155,3.33431,2399.3,2399.0,1.30840135]
[1727929152911,6.66823,2399.5,2399.0,1.30840135]
[1727929153135,0.1925,2399.7,2399.1,3.33455]
[1727929153136,3.33393,2399.6,2399.1,3.33455]
[1727929153339,3.33405,2399.5,2399.1,0.46429514]
[1727929156065,6.6682,2399.5,2399.1,0.46429514]
[1727929156424,3.33405,2399.5,2399.1,0.46429514]
[1727929156625,3.33405,2399.5,2399.0,0.8067]
[1727929157066,3.33425,2399.4,2399.0,0.8067]
[1727929162858,3.33405,2399.5,2399.0,0.8067]
[1727929163056,3.33391,2399.6,2399.0,0.82780248]
[1727929163278,3.33391,2399.6,2399.1,3.75074525]
[1727929163567,3.33384,2399.7,2399.1,6.669]
[1727929163777,6.66766,2399.7,2399.2,0.8188]
[1727929163975,13.72028,2400.1,2399.4,0.8188]
[1727929164164,6.33328,2400.1,2399.6,3.33385]
[1727929164359,6.33328,2400.1,2399.7,1.152185]
[1727929164574,9.66657,2400.1,2399.7,0.8188]
[1727929164778,3.33336,2400.0,2399.7,0.8188]
[1727929167874,3.3335,2399.9,2399.7,0.8188]
[1727929168930,6.66682,2400.0,2399.7,0.8188]
[1727929169244,3.3335,2399.9,2399.7,0.8188]
[1727929173294,3.33361,2399.8,2399.7,0.8188]
[1727929176899,3.33347,2399.9,2399.7,0.8188]
[1727929177770,3.33361,2399.8,2399.7,0.8188]
[1727929179602,6.66704,2399.9,2399.7,0.8188]
[1727929179902,3.33328,2400.1,2399.7,0.8188]
[1727929180069,3.33328,2400.1,2399.8,0.06756563]
[1727929180395,3.33328,2400.1,2399.9,0.76]
[1727929183205,3.33326,2400.1,2399.9,0.76]
[1727929183353,3.33348,2399.9,2399.7,0.7922]
[1727929184698,3.33326,2400.1,2399.7,0.7922]
[1727929184883,3.33333,2400.0,2399.7,0.7922]
[1727929186117,6.66658,2400.1,2399.7,0.7922]
[1727929186321,3.33306,2400.2,2399.7,4.12592]
[1727929186491,6.66551,2400.5,2399.9,0.8184]
[1727929186690,6.66551,2400.5,2399.9,4.1518]
[1727929186691,3.33279,2400.4,2399.9,4.1518]
[1727929187276,3.33294,2400.3,2399.9,1.566929]
[1727929187502,3.33279,2400.4,2399.9,1.566929]
[1727929187922,3.33279,2400.4,2399.9,4.900389]
[1727929189614,3.33279,2400.4,2400.0,3.33331]
[1727929189786,3.33279,2400.4,2400.1,0.49620838]
[1727929189992,3.33264,2400.5,2400.1,0.49620838]
[1727929190230,3.33264,2400.5,2400.0,3.33331]
[1727929190785,3.33279,2400.4,2400.0,3.33331]
[1727929191096,3.33293,2400.3,2399.9,1.566929]
[1727929193300,3.33309,2400.2,2399.9,0.8184]
[1727929193699,3.33309,2400.2,2399.6,3.3338]
[1727929193700,3.33333,2400.0,2399.6,0.7556]
[1727929196387,3.33319,2400.1,2399.6,0.7556]
[1727929196799,3.33342,2400.0,2399.6,0.7556]
[1727929197837,3.33342,2400.0,2399.6,4.08947]
[1727929198532,6.26435793,2400.2,2399.6,4.08938]
[1727929198773,3.33326,2400.1,2399.6,4.08938]
[1727929200088,3.33326,2400.1,2399.6,7.4232]
[1727929200437,3.33326,2400.1,2399.6,4.08938]
[1727929202129,3.33326,2400.1,2399.7,3.3337]
[1727929202432,3.33273,2400.5,2400.0,4.08841]
[1727929202633,3.33273,2400.5,2400.1,0.742187]
[1727929202862,3.33273,2400.5,2400.0,4.08841]
[1727929203439,6.66547,2400.5,2400.0,4.08841]
[1727929203636,3.33273,2400.5,2400.0,4.08841]
[1727929204158,6.66548,2400.5,2400.0,4.08841]
[1727929205151,2.93128793,2400.6,2400.0,0.7551]
[1727929205500,13.71926,2400.8,2399.6,0.8009]
[1727929205501,3.33336,2400.0,2399.6,0.8009]
[1727929205810,3.33367,2399.8,2399.4,1.67490717]
[1727929206098,3.33367,2399.8,2399.4,0.8009]
[1727929206099,3.33399,2399.6,2399.4,0.8009]
[1727929206274,3.33399,2399.6,2399.2,2.24840698]
[1727929206597,3.33399,2399.6,2399.2,0.8009]
[1727929206774,3.33377,2399.7,2399.2,0.8009]
[1727929206972,3.33377,2399.7,2399.2,5.64126596]
[1727929207169,3.33377,2399.7,2399.2,4.76725879]
[1727929207381,3.33377,2399.7,2399.2,5.64126596]
[1727929207882,3.33392,2399.6,2399.2,2.30694596]
[1727929208081,3.33392,2399.6,2399.2,1.67490717]
[1727929208273,3.33392,2399.6,2399.2,0.8009]
[1727929208473,3.33377,2399.7,2399.2,4.13531]
[1727929208673,3.33377,2399.7,2399.2,5.00931717]
[1727929209199,3.33377,2399.7,2399.2,4.13531]
[1727929214927,2.93128793,2399.8,2399.2,4.13531]
[1727929215106,6.26501793,2399.8,2399.3,3.33421]
[1727929216331,3.33399,2399.6,2399.2,0.8009]
[1727929216625,3.33417,2399.4,2399.0,0.7902]
[1727929217778,3.33417,2399.4,2399.0,4.1249]
[1727929217979,6.07276793,2399.6,2399.1,3.33457]
[1727929217980,3.33398,2399.6,2399.1,3.33457]
[1727929218701,3.33404,2399.5,2399.1,3.33457]
[1727929218872,3.33404,2399.5,2399.0,0.7902]
[1727929219420,3.33404,2399.5,2399.0,4.12483]
[1727929219825,3.33404,2399.5,2399.0,0.7902]
[1727929219999,3.33404,2399.5,2399.0,4.12492]
[1727929220326,3.33398,2399.6,2399.1,3.33457]
[1727929220684,3.33403,2399.5,2399.0,1.62356672]
[1727929220889,3.52653,2399.5,2399.0,4.12491]
[1727929221824,3.33418,2399.4,2398.9,3.33474]
[1727929222334,3.33432,2399.3,2398.9,3.33474]
[1727929222493,3.33432,2399.3,2398.8,0.7829]
[1727929222494,3.33432,2399.3,2398.8,4.11783]
[1727929222893,0.1925,2399.1,2398.8,0.7829]
[1727929223392,0.1925,2399.1,2398.7,3.33512]
[1727929223393,3.5271,2399.1,2398.7,3.33512]
[1727929223845,3.5271,2399.1,2398.6,0.8008]
[1727929223846,0.1925,2399.1,2398.6,0.8008]
[1727929224042,3.52708,2399.1,2398.6,4.13606]
[1727929225952,9.40778793,2399.2,2398.6,4.8832]
[1727929226444,9.07300793,2399.4,2398.7,4.10034]
[1727929226657,3.33432,2399.3,2398.8,3.819638]
[1727929226948,6.66872,2399.3,2398.8,3.33489]
[1727929227325,3.33432,2399.3,2398.8,3.33489]
[1727929227520,3.33432,2399.3,2398.7,4.10034]
[1727929227847,6.66873,2399.3,2398.7,4.510374]
[1727929228048,3.33444,2399.2,2398.7,4.510374]
[1727929228249,3.33444,2399.2,2398.7,0.7653]
[1727929228250,3.33472,2399.0,2398.7,0.7653]
[1727929228964,3.33489,2398.9,2398.7,0.7653]
[1727929229272,3.33489,2398.9,2398.5,0.772]
[1727929229432,3.33504,2398.8,2398.5,0.772]
[1727929229632,3.33489,2398.9,2398.5,0.772]
[1727929229959,3.33468,2399.1,2398.7,0.7959]
[1727929231232,3.33465,2399.1,2398.7,0.7959]
[1727929232143,6.66931,2399.1,2398.7,0.7959]
[1727929232347,0.06818348,2399.0,2398.7,0.7959]
[1727929234808,0.06818348,2399.0,2398.7,4.67832625]
[1727929235369,0.06818348,2399.0,2398.7,1.34320625]
[1727929236583,3.40291348,2399.0,2398.7,1.34320625]
[1727929238421,3.40291348,2399.0,2398.7,0.7959]
[1727929238969,3.40291348,2399.0,2398.6,0.8111]
[1727929239174,3.33508,2398.8,2398.4,0.8111]
[1727929239477,0.06648247,2398.7,2398.4,0.8111]
[1727929239678,3.33508,2398.8,2398.4,1.225779]
[1727929240167,0.06649107,2398.7,2398.4,1.225779]
[1727929240368,3.33508,2398.8,2398.4,1.225779]
[1727929240572,0.06645237,2398.7,2398.4,1.225779]
[1727929240767,3.33516,2398.7,2398.4,1.225779]
[1727929240972,0.06645237,2398.6,2398.4,1.225779]
[1727929244438,3.33514,2398.7,2398.4,0.8111]
[1727929244788,0.06645237,2398.5,2398.4,0.8111]
[1727929245030,3.33508,2398.8,2398.4,0.8111]
[1727929245203,0.06645237,2398.5,2398.4,0.8111]
[1727929245397,6.67017,2398.8,2398.4,1.225779]
[1727929245619,0.06645237,2398.7,2398.4,1.225779]
[1727929245825,6.67017,2398.8,2398.4,1.225779]
[1727929246016,0.06645237,2398.6,2398.4,0.8111]
[1727929246289,6.67015,2398.8,2398.4,0.8111]
[1727929246505,0.06645237,2398.5,2398.4,0.8111]
[1727929246703,6.67015,2398.8,2398.4,1.225779]
[1727929246934,0.06423729,2398.5,2398.4,1.225779]
[1727929247092,6.67017,2398.8,2398.4,1.225779]
[1727929247293,0.06423729,2398.5,2398.4,1.225779]
[1727929247493,6.67017,2398.8,2398.4,1.225779]
[1727929247840,3.33493,2398.9,2398.4,0.8111]
[1727929247990,3.33493,2398.9,2398.4,3.33549]
[1727929248191,0.06399203,2398.8,2398.5,0.7964]
[1727929248520,0.06399203,2398.8,2398.5,1.54760374]
[1727929249517,0.06399203,2398.8,2398.5,4.08660374]
[1727929249726,7.387,2399.1,2398.7,3.33513]
[1727929250020,7.387,2399.1,2398.8,0.7816]
[1727929250442,14.718,2399.8,2399.1,3.33453]
[1727929250443,3.52616,2399.8,2399.1,3.33453]
[1727929250738,3.52616,2399.8,2399.3,0.7816]
[1727929251091,1.26443911,2399.7,2399.3,0.7816]
[1727929251321,3.33412,2399.5,2399.3,0.7816]
[1727929251534,3.33416,2399.4,2399.0,0.7816]
[1727929251735,3.33416,2399.4,2399.0,1.748575]
[1727929252240,1.26443911,2399.5,2399.0,5.083285]
[1727929253345,1.26443911,2399.5,2399.0,8.417995]
[1727929253635,1.26443911,2399.5,2399.1,1.1417995]
[1727929254009,4.59854911,2399.5,2399.1,1.1417995]
[1727929254595,1.26443911,2399.5,2399.1,1.1417995]
[1727929255027,1.26443911,2399.5,2399.0,7.45086]
[1727929256044,1.26443911,2399.5,2399.1,3.33455]
[1727929257232,1.26443911,2399.5,2399.0,4.11622]
[1727929257592,4.59846911,2399.5,2399.0,4.11622]
[1727929257792,0.1925,2399.4,2399.0,4.11622]
[1727929258838,0.1925,2399.4,2399.0,0.7816]
[1727929258839,3.5267,2399.4,2399.0,0.7816]
[1727929259921,3.5267,2399.4,2398.8,4.0975]
[1727929260125,1.26443911,2399.3,2398.9,3.33486]
[1727929260853,6.86095,2399.4,2398.9,3.33486]
[1727929261398,6.86095,2399.4,2398.8,4.09748]
[1727929261399,6.66844,2399.4,2398.8,4.09748]
[1727929261663,6.66844,2399.4,2398.8,7.43239]
[1727929261939,0.06245234,2399.3,2398.8,7.43239]
[1727929262122,0.06245234,2399.3,2398.8,4.09748]
[1727929262321,0.06245234,2399.3,2398.9,3.33484]
[1727929262728,0.06245234,2399.3,2398.8,4.09748]
[1727929262929,3.33445,2399.2,2398.8,0.7626]
[1727929263302,0.06246526,2399.1,2398.8,0.7626]
[1727929263748,4.66148437,2399.1,2398.6,3.33518]
[1727929263950,4.66148437,2399.1,2398.6,0.7649]
[1727929263951,1.26443911,2398.9,2398.6,0.7649]
[1727929264248,4.79181911,2398.9,2398.4,4.10037]
[1727929264455,0.06241794,2398.8,2398.4,4.10037]
[1727929264751,0.06241794,2398.8,2398.5,3.33537]
[1727929264961,0.06241794,2398.8,2398.6,3.33527]
[1727929265309,3.33472,2399.0,2398.6,3.33527]
[1727929265509,0.06216843,2398.7,2398.6,6.67047]
[1727929265836,10.91357,2399.5,2399.0,3.3347]
[1727929266009,3.52657,2399.5,2399.0,4.0987]
[1727929266554,0.1925,2399.5,2399.0,4.09863]
[1727929266708,3.52653,2399.5,2399.0,4.09863]
[1727929266908,0.1925,2399.5,2399.0,7.43328]
[1727929267141,0.1925,2399.5,2399.0,4.09863]
[1727929267952,3.33433,2399.3,2399.0,0.764]
[1727929268238,2.93080583,2399.5,2398.8,0.8231]
[1727929268500,3.33451,2399.2,2398.8,0.8231]
[1727929268809,0.1925,2399.1,2398.6,0.8006]
[1727929269005,3.33474,2399.0,2398.6,0.8006]
[1727929270746,3.33502,2398.8,2398.4,0.762]
[1727929270910,6.67009,2398.8,2398.4,0.762]
[1727929271117,6.67015,2398.8,2398.4,0.762]
[1727929271335,6.67015,2398.8,2397.8,1.74801434]
[1727929271336,3.33576,2398.3,2397.8,3.33625]
[1727929271539,2.73830583,2398.6,2397.8,3.33625]
[1727929271540,6.26671583,2398.2,2397.8,0.7798]
[1727929271749,3.52841,2398.2,2397.8,0.7798]
[1727929272164,3.52841,2398.2,2397.6,6.67314]
[1727929272309,6.26671583,2398.2,2397.6,3.33666]
[1727929272514,9.60262583,2398.2,2397.6,3.33666]
[1727929272925,6.86432,2398.2,2397.6,3.33666]
[1727929273121,3.33597,2398.1,2397.6,3.33666]
[1727929273357,6.86434,2398.2,2397.6,3.33659]
[1727929273917,3.336,2398.1,2397.6,3.33659]
[1727929275418,3.52841,2398.2,2397.6,3.33659]
[1727929275613,3.33564,2398.4,2397.8,3.33627]
[1727929276420,3.1925,2398.5,2398.0,3.33601]
[1727929276757,10.387,2398.7,2397.9,0.7677]
[1727929276758,0.05932543,2398.4,2398.2,3.33575]
[1727929277057,0.05932543,2398.4,2398.3,4.11089]
[1727929277213,0.1925,2399.1,2398.5,3.33531]
[1727929277414,3.33453,2399.2,2398.7,3.33506]
[1727929278014,3.33453,2399.2,2398.7,3.33505]
[1727929278215,3.33453,2399.2,2398.8,3.33499]
[1727929278856,3.33453,2399.2,2398.7,3.748126]
[1727929280123,3.33452,2399.2,2398.7,3.748126]
[1727929280458,3.33452,2399.2,2398.7,3.33505]
[1727929281164,0.1925,2399.3,2398.8,3.33499]
[1727929281456,3.33446,2399.2,2398.7,3.33505]
[1727929281813,3.33446,2399.2,2398.7,6.6701]
[1727929282017,6.66901,2399.2,2398.7,4.08163]
[1727929282211,6.66901,2399.2,2398.6,4.13097]
[1727929282212,3.33459,2399.1,2398.6,4.13097]
[1727929282618,3.33459,2399.1,2398.6,0.7957]
[1727929283147,3.33484,2399.0,2398.6,0.7957]
[1727929283463,0.1925,2398.9,2398.4,0.768]
[1727929283631,3.33515,2398.7,2398.2,4.10372]
[1727929284128,3.33515,2398.7,2398.2,7.43943]
[1727929284333,3.33515,2398.7,2398.2,4.10371]
[1727929284967,3.33515,2398.7,2398.2,7.43946]
[1727929285474,3.33515,2398.7,2398.2,4.10371]
[1727929285624,3.33515,2398.7,2398.2,7.43947]
[1727929286122,3.33515,2398.7,2398.2,4.10371]
[1727929286522,3.33515,2398.7,2398.2,7.43947]
[1727929287762,3.33515,2398.7,2398.2,4.10371]
[1727929289267,3.33515,2398.7,2398.2,7.43946]
[1727929289929,3.33515,2398.7,2398.2,4.10371]
[1727929290128,3.33515,2398.7,2398.2,7.43946]
[1727929291168,6.86242,2398.9,2398.3,3.33568]
[1727929291568,3.33502,2398.8,2398.3,3.33568]
[1727929291898,3.39101454,2398.8,2398.3,3.33568]
[1727929292047,3.33515,2398.7,2398.2,4.10371]
[1727929292556,0.05599454,2398.6,2398.2,7.43947]
[1727929292770,0.05599454,2398.6,2398.2,4.10371]
[1727929293089,3.33542,2398.5,2398.2,0.768]
[1727929293478,3.33528,2398.6,2398.2,0.768]
[1727929293651,0.05601176,2398.4,2398.2,0.768]
[1727929293853,3.33528,2398.6,2398.0,4.13841]
[1727929294091,0.05601176,2398.3,2398.0,4.13841]
[1727929294292,3.3355,2398.5,2398.0,4.13841]
[1727929294478,0.05601176,2398.2,2398.0,0.8024]
[1727929294681,3.33563,2398.4,2398.0,0.8024]
[1727929294682,6.07393583,2398.4,2398.0,0.8024]
[1727929295006,0.05574924,2398.1,2398.0,0.8024]
[1727929295301,3.33563,2398.4,2398.0,0.8024]
[1727929295468,0.05574924,2398.1,2398.0,0.8024]
[1727929295651,3.33559,2398.4,2398.0,0.8024]
[1727929296052,3.39144924,2398.3,2398.0,0.8024]
[1727929296253,0.05574924,2398.3,2398.0,0.8024]
[1727929296454,3.33572,2398.3,2398.0,0.8024]
[1727929296653,3.33572,2398.3,2397.8,7.49641]
[1727929296855,0.05574924,2398.2,2397.8,7.49641]
[1727929297055,3.33555,2398.4,2397.9,3.33623]
[1727929297295,0.05565024,2398.3,2398.0,3.3361]
[1727929297959,0.05565024,2398.3,2397.8,4.1601]
[1727929298158,0.05565024,2398.3,2397.8,4.16008]
[1727929298659,0.05565024,2398.3,2397.9,3.33617]
[1727929299707,3.39136024,2398.3,2397.9,3.33617]
[1727929300497,3.33585,2398.2,2397.8,0.8238]
[1727929300701,3.33598,2398.1,2397.7,3.33649]
[1727929301005,3.3364,2397.8,2397.4,1.1145703]
[1727929301315,3.3364,2397.8,2397.2,1.44115966]
[1727929301316,0.05545219,2397.7,2397.2,0.7601]
[1727929301477,3.33668,2397.6,2397.2,0.7601]
[1727929301973,0.05545219,2397.5,2397.2,0.7601]
[1727929302420,0.05545219,2397.5,2397.2,4.09732]
[1727929302717,0.05545219,2397.4,2397.2,4.09732]
[1727929302875,3.33654,2397.7,2397.2,4.09732]
[1727929303072,0.05545219,2397.6,2397.2,4.09732]
[1727929303627,0.05545219,2397.6,2397.2,0.7601]
[1727929304919,3.5289,2397.8,2397.2,0.7601]
[1727929305124,0.05359761,2397.7,2397.2,0.7601]
[1727929305478,3.39012761,2397.7,2397.2,0.7601]
[1727929305673,0.05359761,2397.7,2397.2,4.09727]